bitfinex/quotes_ETHUSD_20251206
["timestamp","ask_amount","ask_price","bid_price","bid_amount"]
[1765053732499,0.519,3040.6,3040.3,0.4681]
[1765053732803,0.519,3040.6,3040.4,0.4681]
[1765053733666,1.15114539,3040.5,3040.4,0.4681]
[1765053734190,1.15114539,3040.5,3040.4,0.9443]
[1765053734774,1.15114539,3040.5,3040.1,0.6639]
[1765053734977,1.15114539,3040.5,3040.2,0.4762]
[1765053736296,4.43993245,3040.7,3040.4,0.4681]
[1765053737000,4.43993245,3040.7,3040.6,0.4681]
[1765053737305,4.43993245,3040.7,3040.4,0.4762]
[1765053737599,1.15114539,3040.7,3040.6,0.4681]
[1765053737976,1.15114539,3040.9,3040.6,0.4681]
[1765053738199,3.28846114,3041.0,3040.8,0.4681]
[1765053738494,1.15114539,3040.9,3040.8,0.4681]
[1765053738695,3.28846114,3041.0,3040.8,0.4681]
[1765053738901,1.15114539,3040.9,3040.8,0.4681]
[1765053739598,1.15114539,3040.9,3040.8,0.9443]
[1765053740005,1.15114539,3040.9,3040.6,0.4762]
[1765053742210,1.15114539,3040.9,3040.8,0.4514]
[1765053745083,4.43946118,3041.1,3040.8,0.9127]
[1765053745488,1.15114539,3040.9,3040.8,0.9127]
[1765053745677,1.30114539,3040.9,3040.3,3.75040517]
[1765053745879,1.30114539,3040.9,3040.3,4.47313964]
[1765053746216,1.30114539,3040.9,3040.3,4.01183964]
[1765053746530,1.30114539,3040.9,3040.4,0.4613]
[1765053747016,1.30114539,3040.9,3040.4,3.75032928]
[1765053747490,1.30114539,3040.9,3040.5,0.4613]
[1765053747690,4.58964957,3040.9,3040.5,0.4613]
[1765053748089,1.30114539,3040.9,3040.5,0.4613]
[1765053749599,1.15114539,3040.9,3040.5,0.4613]
[1765053750613,1.15114539,3041.1,3040.8,0.4514]
[1765053750820,1.15114539,3041.1,3040.9,0.4514]
[1765053751781,1.15114539,3041.1,3040.9,0.9127]
[1765053751992,4.43943114,3041.1,3040.9,0.9127]
[1765053752610,1.15114539,3041.1,3040.9,0.9127]
[1765053755500,1.15114539,3041.1,3041.0,0.9127]
[1765053755688,1.15114539,3041.1,3041.0,0.4514]
[1765053755995,1.15114539,3041.1,3041.0,0.9127]
[1765053756716,4.43922105,3041.3,3041.0,0.9127]
[1765053757211,1.15114539,3041.1,3041.0,0.9127]
[1765053757412,1.15114539,3041.1,3041.0,0.4514]
[1765053760115,1.15114539,3041.1,3040.8,0.4613]
[1765053760313,1.15114539,3041.3,3041.0,0.4514]
[1765053760536,5.06543746,3041.3,3041.0,0.4514]
[1765053760890,5.06543746,3041.3,3041.0,0.9127]
[1765053762418,1.77726205,3041.3,3041.0,0.9127]
[1765053762616,1.77726205,3041.3,3041.0,0.4514]
[1765053762922,1.77726205,3041.3,3041.1,0.4613]
[1765053763131,1.77726205,3041.3,3041.0,0.4514]
[1765053763311,1.77726205,3041.3,3041.0,0.9127]
[1765053763719,5.06533249,3041.3,3041.0,0.9127]
[1765053763902,1.15114539,3041.1,3041.0,0.9127]
[1765053764104,1.15114539,3041.1,3041.0,0.4514]
[1765053764327,1.15114539,3041.1,3040.8,0.4613]
[1765053773480,4.43943013,3041.1,3040.8,0.4613]
[1765053773662,1.30114539,3040.9,3040.4,4.28277421]
[1765053773836,1.30114539,3040.9,3040.4,3.80797421]
[1765053774036,1.30114539,3040.9,3040.5,0.4748]
[1765053776945,3.32950172,3041.0,3040.5,3.76372405]
[1765053776946,0.04110489,3041.0,3040.5,3.76372405]
[1765053777152,4.43947468,3041.1,3040.5,3.76372405]
[1765053777372,4.43947468,3041.1,3041.0,0.496]
[1765053777551,5.42608281,3041.1,3041.0,0.496]
[1765053777737,5.42608281,3041.1,3041.0,0.9708]
[1765053777938,5.42608281,3041.1,3041.0,0.496]
[1765053778369,5.42608281,3041.1,3040.8,0.4748]
[1765053779174,5.42608281,3041.1,3040.5,3.28892405]
[1765053779378,4.43947468,3041.1,3040.5,3.28892405]
[1765053779696,4.43947468,3041.1,3040.6,0.4748]
[1765053780759,0.15,3041.0,3040.4,0.519]
[1765053780954,0.15,3041.0,3040.2,0.98738939]
[1765053780955,1.15114539,3040.9,3040.2,0.98738939]
[1765053781157,1.15114539,3040.9,3040.3,0.72559411]
[1765053781158,1.15114539,3040.7,3040.3,0.72559411]
[1765053781354,1.15114539,3040.7,3040.3,1.20039411]
[1765053781559,1.15114539,3040.7,3040.4,0.4748]
[1765053781969,4.43969248,3040.9,3040.6,0.496]
[1765053782292,2.13780527,3040.9,3040.6,0.496]
[1765053782666,2.13780527,3040.9,3040.6,0.9708]
[1765053783846,2.13780527,3040.9,3040.7,0.4748]
[1765053784172,1.15114539,3040.9,3040.7,0.4748]
[1765053786457,0.98745764,3041.0,3040.8,0.9708]
[1765053786663,0.98745764,3041.0,3040.9,0.496]
[1765053786862,0.98745764,3041.0,3040.9,0.9708]
[1765053787281,0.98745764,3041.0,3040.9,0.496]
[1765053787887,0.98737964,3041.2,3040.9,0.9708]
[1765053788055,1.15114539,3041.1,3040.9,0.496]
[1765053788983,1.19224893,3041.1,3040.9,0.496]
[1765053789373,1.15114539,3041.1,3040.9,0.496]
[1765053790184,4.48054059,3041.1,3040.9,0.496]
[1765053793788,1.15114539,3041.1,3040.9,0.496]
[1765053795289,1.15114539,3041.1,3040.9,0.9708]
[1765053795476,4.43942953,3041.1,3040.9,0.9708]
[1765053796383,4.43942953,3041.1,3040.9,0.496]
[1765053798109,4.43942953,3041.1,3040.7,0.4748]
[1765053798283,0.15,3040.8,3040.3,1.71297375]
[1765053798472,1.15114539,3040.7,3040.3,0.72559411]
[1765053798670,1.15114539,3040.7,3040.4,0.4748]
[1765053798871,1.15114539,3040.7,3040.0,0.72659411]
[1765053798872,0.15,3040.4,3040.0,0.72659411]
[1765053799181,1.15114539,3040.5,3040.0,0.92489064]
[1765053799491,1.15114539,3040.3,3040.0,0.001]
[1765053799880,1.15114539,3040.5,3040.0,0.4758]
[1765053800063,1.15114539,3040.5,3040.4,0.4647]
[1765053800262,3.28882457,3040.6,3040.4,0.945]
[1765053800464,3.28882457,3040.6,3040.4,0.4647]
[1765053800663,1.15114539,3040.5,3040.2,0.4803]
[1765053801292,1.63144539,3040.5,3040.2,0.4803]
[1765053802477,1.63144539,3040.5,3040.4,0.4647]
[1765053803907,1.63144539,3040.5,3040.2,0.4803]
[1765053804105,1.63144539,3040.5,3040.4,0.4647]
[1765053804306,3.28828384,3041.1,3040.4,0.4647]
[1765053804495,3.28828384,3041.1,3040.6,0.4647]
[1765053804496,1.15114539,3041.0,3040.6,0.4647]
[1765053804803,0.98750314,3040.9,3040.6,0.4647]
[1765053804978,1.15114539,3041.0,3040.7,0.4803]
[1765053805178,2.13863228,3041.0,3040.7,0.4803]
[1765053806220,5.42709816,3041.0,3040.7,0.4803]
[1765053806781,2.13863228,3041.0,3040.7,0.4803]
[1765053807026,2.13863228,3041.0,3040.9,0.4647]
[1765053807382,1.15114539,3041.0,3040.9,0.4647]
[1765053807785,4.43953736,3041.0,3040.9,0.4647]
[1765053812308,1.15114539,3041.0,3040.9,0.4647]
[1765053813186,1.15114539,3041.0,3040.9,0.945]
[1765053814013,1.15114539,3041.0,3040.9,0.4647]
[1765053815112,0.98746089,3041.1,3040.9,0.945]
[1765053815313,1.15114539,3041.2,3041.0,0.4647]
[1765053815520,2.13857378,3041.2,3041.1,0.4647]
[1765053815714,1.15114539,3041.2,3041.1,0.4647]
[1765053815890,1.15114539,3041.2,3041.1,0.945]
[1765053817520,4.43932111,3041.2,3041.1,0.945]
[1765053818120,4.43932111,3041.2,3041.1,0.4647]
[1765053818619,4.43932111,3041.2,3040.9,0.4803]
[1765053820649,1.15114539,3041.2,3040.9,0.4803]
[1765053820920,1.15114539,3041.2,3041.1,0.4647]
[1765053821702,4.43932111,3041.2,3041.1,0.4647]
[1765053823519,0.98737964,3041.3,3041.1,0.4647]
[1765053823703,0.519,3041.4,3041.2,0.4647]
[1765053823893,1.15114539,3041.3,3041.2,0.4647]
[1765053825427,1.15114539,3041.3,3041.2,0.945]
[1765053826022,4.43921299,3041.3,3041.2,0.945]
[1765053826516,1.15114539,3041.3,3041.2,0.4647]
[1765053826726,1.15114539,3041.3,3041.2,0.945]
[1765053828017,3.2880676,3041.3,3041.2,0.945]
[1765053828226,4.27635137,3041.4,3041.2,0.945]
[1765053829432,4.27635137,3041.4,3041.3,0.945]
[1765053830513,4.27635137,3041.4,3041.3,0.4647]
[1765053831708,0.001,3041.4,3041.3,0.9401]
[1765053832030,0.001,3041.4,3041.3,5.28381181]
[1765053832930,0.001,3041.4,3041.3,1.99574421]
[1765053833432,0.001,3041.4,3041.3,5.28381181]
[1765053834628,0.001,3041.4,3041.3,11.61205027]
[1765053835211,0.001,3041.4,3041.3,11.74365843]
[1765053836013,0.001,3041.4,3041.3,12.46925254]
[1765053837722,0.001,3041.4,3041.3,12.33764438]
[1765053842336,0.001,3041.4,3041.3,6.00940592]
[1765053845414,0.001,3041.4,3041.3,1.52034421]
[1765053845616,0.001,3041.4,3041.3,0.4647]
[1765053846922,0.151,3041.4,3041.1,3.80624923]
[1765053847124,0.001,3041.4,3041.2,3.77006852]
[1765053847947,0.001,3041.4,3041.2,3.28816852]
[1765053848117,0.001,3041.4,3041.1,0.518]
[1765053848118,0.15,3041.3,3041.1,1.24359411]
[1765053848449,0.15,3041.3,3041.1,1.01938855]
[1765053848950,0.001,3041.4,3041.1,4.78956836]
[1765053849127,0.001,3041.4,3041.1,4.28817981]
[1765053849550,0.001,3041.4,3041.1,0.9999]
[1765053849838,0.001,3041.4,3041.1,0.518]
[1765053851035,0.001,3041.4,3041.1,3.80627997]
[1765053851237,0.001,3041.4,3041.1,4.28817997]
[1765053851444,0.001,3041.4,3040.8,0.518]
[1765053851616,0.001,3041.4,3041.2,0.4819]
[1765053854542,0.001,3041.4,3041.0,3.77024435]
[1765053854747,0.001,3041.4,3041.1,0.4819]
[1765053858855,0.15,3041.2,3040.8,0.518]
[1765053859056,1.30114539,3041.1,3040.5,0.518]
[1765053859270,1.30114539,3041.1,3040.6,0.4819]
[1765053859552,0.15,3041.1,3040.6,0.68062147]
[1765053859754,0.151,3041.4,3040.6,0.68062147]
[1765053859960,0.001,3041.4,3041.0,0.4598]
[1765053860323,0.001,3041.4,3041.1,0.4671]
[1765053860548,0.001,3041.4,3041.0,3.74815337]
[1765053860748,1.15114539,3041.3,3041.0,3.74815337]
[1765053861858,1.15114539,3041.3,3041.0,0.4598]
[1765053862028,1.15114539,3041.3,3041.0,4.21527865]
[1765053862355,1.15114539,3041.3,3041.0,0.9269]
[1765053862556,0.001,3041.4,3041.2,0.4689]
[1765053862758,0.001,3041.4,3041.3,0.4689]
[1765053863152,0.001,3041.4,3041.3,0.936]
[1765053870670,0.001,3041.4,3041.3,0.4689]
[1765053871970,0.001,3041.4,3041.0,3.28834912]
[1765053871971,0.151,3041.4,3041.0,3.28834912]
[1765053872148,0.151,3041.4,3041.1,0.4671]
[1765053872467,0.001,3041.4,3041.1,0.4671]
[1765053877676,1.15114539,3041.3,3040.9,3.75557686]
[1765053877847,1.15114539,3041.3,3041.0,0.4671]
[1765053879879,0.001,3041.4,3041.2,0.4689]
[1765053880457,0.001,3041.4,3041.2,0.936]
[1765053880958,0.001,3041.4,3041.2,0.4689]
[1765053881155,0.15,3041.3,3040.9,3.8064696]
[1765053881376,0.15,3041.3,3040.9,4.56269589]
[1765053881948,0.15,3041.3,3040.9,5.02979589]
[1765053882175,0.15,3041.3,3040.9,4.56269589]
[1765053882367,0.15,3041.3,3041.0,0.4671]
[1765053883076,0.15,3041.3,3040.9,4.56269589]
[1765053883276,0.15,3041.3,3040.9,5.02979589]
[1765053883579,0.15,3041.3,3041.0,0.4671]
[1765053887376,0.15,3041.3,3040.7,3.28871376]
[1765053887377,0.15,3041.1,3040.7,3.28871376]
[1765053887584,1.15114539,3041.3,3040.8,3.63733395]
[1765053887879,1.15114539,3041.3,3041.0,0.4689]
[1765053888250,1.15114539,3041.3,3041.0,0.936]
[1765053893891,0.001,3041.4,3041.2,0.4654]
[1765053894186,0.001,3041.4,3041.3,0.4654]
[1765053894378,0.001,3041.4,3041.3,0.9609]
[1765053897596,0.001,3041.4,3041.3,0.4654]
[1765053900389,0.001,3041.4,3041.3,0.9609]
[1765053900896,0.001,3041.4,3041.3,0.4654]
[1765053901796,0.001,3041.4,3041.3,0.9609]
[1765053902205,0.001,3041.4,3041.3,0.4654]
[1765053904066,0.001,3041.4,3041.3,0.9609]
[1765053904978,0.001,3041.4,3041.3,1.43761617]
[1765053907311,0.001,3041.4,3041.3,0.9609]
[1765053908112,0.001,3041.4,3041.3,4.2489676]
[1765053908978,0.001,3041.4,3041.3,4.26549217]
[1765053909181,0.001,3041.4,3041.3,4.2489676]
[1765053909574,0.001,3041.4,3041.3,4.38057793]
[1765053909774,0.001,3041.4,3041.3,6.16057304]
[1765053925436,0.001,3041.4,3041.3,5.66507304]
[1765053926911,0.001,3041.4,3041.3,6.11967304]
[1765053928242,0.001,3041.4,3041.3,5.66507304]
[1765053929239,0.001,3041.4,3041.3,6.11967304]
[1765053963079,0.001,3041.4,3041.3,5.66507304]
[1765053963302,0.001,3041.4,3041.3,3.88507793]
[1765053964658,0.001,3041.4,3041.3,4.34507793]
[1765053974408,0.001,3041.4,3041.3,3.88507793]
[1765053984773,0.151,3041.4,3041.3,0.13161033]
[1765053984972,0.301,3041.4,3041.3,0.13161033]
[1765053985180,0.452,3041.4,3041.3,0.13161033]
[1765053985385,0.452,3041.4,3040.8,0.518]
[1765053985581,0.15,3041.3,3040.8,0.518]
[1765053985801,0.15,3041.3,3040.9,0.72559411]
[1765053985980,0.87559411,3041.3,3040.9,0.72559411]
[1765053986186,0.15,3041.0,3040.9,0.72559411]
[1765053986385,0.15,3041.0,3040.8,0.518]
[1765053986587,0.2,3040.9,3040.5,0.518]
[1765053986875,0.15,3040.6,3040.5,3.80693274]
[1765053987071,0.15,3040.6,3040.1,0.1958]
[1765053987304,0.15,3040.4,3040.2,3.28918631]
[1765053987600,0.15,3040.4,3040.3,0.72559411]
[1765053987901,4.48966888,3040.9,3040.3,0.72559411]
[1765053987902,0.98743814,3040.8,3040.3,0.72559411]
[1765053988102,0.15,3040.4,3040.0,0.72659411]
[1765053988309,0.15,3040.3,3040.2,0.72559411]
[1765053988599,0.15,3040.3,3040.2,4.01485139]
[1765053988999,1.15114539,3040.5,3040.2,0.72559411]
[1765053989378,1.30114539,3040.7,3040.2,4.01485018]
[1765053990308,0.15,3040.6,3040.2,4.01485018]
[1765053990808,0.15,3040.6,3040.2,0.72559411]
[1765053992598,1.15114539,3040.7,3040.2,4.01483672]
[1765053992798,1.15114539,3040.7,3040.2,4.49913672]
[1765053993299,1.30114539,3040.7,3040.2,4.49913672]
[1765053994132,0.98743814,3040.8,3040.2,4.01483672]
[1765053994344,1.15114539,3040.7,3040.2,4.01483672]
[1765053994630,1.15114539,3040.7,3040.2,4.49913672]
[1765053994810,1.15114539,3040.7,3040.3,0.4843]
[1765053995912,2.13860303,3040.7,3040.3,0.4843]
[1765053998395,0.15,3040.4,3040.2,4.01483672]
[1765053998594,0.15,3040.4,3040.2,4.7636476]
[1765053999103,0.15,3040.3,3040.2,1.47440499]
[1765053999303,0.15,3040.3,3040.0,0.001]
[1765053999707,0.15,3040.3,3040.0,0.72659411]
[1765054000223,0.15,3040.1,3040.0,0.001]
[1765054000600,0.3,3040.1,3040.0,0.001]
[1765054000800,1.45114539,3040.1,3040.0,0.001]
[1765054001002,1.58283328,3040.1,3040.0,0.001]
[1765054001216,1.43283328,3040.1,3040.0,0.001]
[1765054003404,0.13168789,3040.1,3040.0,0.4655]
[1765054003652,1.20114539,3040.9,3040.0,7.273724]
[1765054003804,0.98749989,3040.8,3040.1,0.6673]
[1765054004230,0.98749989,3040.8,3040.2,0.4843]
[1765054005420,0.98749989,3040.8,3040.2,3.77346115]
[1765054005642,0.98749989,3040.8,3040.3,0.4843]
[1765054007327,0.98749989,3040.8,3040.3,3.77344587]
[1765054007826,1.15114539,3040.9,3040.7,0.4645]
[1765054008017,1.15114539,3040.9,3040.4,0.4843]
[1765054010245,1.15114539,3040.9,3040.3,3.28914587]
[1765054010541,1.15114539,3040.9,3040.3,7.57109496]
[1765054011051,1.15114539,3040.9,3040.4,0.4748]
[1765054011550,1.15114539,3041.1,3040.8,0.4558]
[1765054011729,1.15114539,3041.1,3040.9,0.4558]
[1765054012118,1.15114539,3041.1,3040.5,0.4748]
[1765054012119,0.15,3041.0,3040.5,0.4748]
[1765054012447,0.15,3041.0,3040.6,3.28882457]
[1765054012650,1.15114539,3040.9,3040.4,1.74445339]
[1765054012837,1.15114539,3040.9,3040.4,0.518]
[1765054013022,1.15114539,3040.9,3040.5,0.4748]
[1765054013440,1.15114539,3041.1,3040.5,3.7637126]
[1765054013639,1.15114539,3041.1,3040.5,7.05264534]
[1765054014022,0.98741864,3041.2,3040.5,3.7637126]
[1765054014348,1.15114539,3041.1,3040.5,3.7637126]
[1765054015225,1.15114539,3041.1,3040.5,3.2889126]
[1765054015427,1.15114539,3040.9,3040.6,0.4832]
[1765054017251,0.15,3040.6,3040.2,0.72559411]
[1765054017455,0.15,3040.6,3040.5,0.518]
[1765054017951,0.15,3040.6,3040.1,0.72559411]
[1765054018156,1.30114539,3040.5,3040.2,3.28922038]
[1765054018340,1.30114539,3040.5,3040.1,0.72559411]
[1765054018851,0.15,3040.2,3040.0,0.001]
[1765054019057,0.15,3040.1,3040.0,0.72659411]
[1765054020043,0.15,3040.1,3040.0,0.001]
[1765054020427,1.15114539,3040.3,3040.0,0.001]
[1765054021362,1.15114539,3040.3,3040.0,3.29046164]
[1765054023172,4.95789963,3040.7,3040.0,0.001]
[1765054023338,4.43967326,3040.9,3040.0,0.001]
[1765054023339,4.43971219,3040.9,3040.2,0.4789]
[1765054023841,4.43971219,3040.9,3040.3,0.4832]
[1765054024737,1.15114539,3040.8,3040.3,3.77233924]
[1765054025366,1.15114539,3040.8,3040.4,0.4832]
[1765054027584,3.28845211,3041.0,3040.3,9.61712645]
[1765054027753,1.15114539,3041.0,3040.7,0.4789]
[1765054028282,1.15114539,3041.0,3040.5,6.81118721]
[1765054028643,4.95724645,3041.3,3040.7,6.32798721]
[1765054028837,1.15114539,3041.1,3040.7,6.32798721]
[1765054029037,1.15114539,3041.1,3040.8,0.4832]
[1765054029280,1.15114539,3041.1,3041.0,0.4789]
[1765054029579,0.001,3041.4,3041.1,3.28828384]
[1765054029862,0.001,3041.4,3041.0,3.28837619]
[1765054030438,0.001,3041.4,3041.3,0.4789]
[1765054031075,0.151,3041.4,3041.0,3.28837619]
[1765054031381,1.30114539,3041.3,3041.0,3.28837619]
[1765054031865,1.15114539,3041.3,3041.0,3.77157619]
[1765054032066,1.15114539,3041.3,3041.0,5.16218281]
[1765054032378,0.001,3041.4,3041.2,0.4789]
[1765054032569,0.001,3041.4,3041.3,0.4789]
[1765054039695,0.001,3041.4,3041.3,0.9621]
[1765054040064,0.001,3041.4,3041.3,0.4789]
[1765054040296,0.001,3041.4,3041.1,6.81118721]
[1765054040452,0.001,3041.4,3041.0,3.28835917]
[1765054040990,1.15114539,3041.3,3041.0,3.28835917]
[1765054041351,1.15114539,3041.3,3041.0,3.77115917]
[1765054041851,1.15114539,3041.3,3041.0,3.28835917]
[1765054044084,1.15114539,3041.3,3041.0,3.77115917]
[1765054044288,1.15114539,3041.3,3041.0,3.28835917]
[1765054045551,1.15114539,3041.3,3041.0,3.77115917]
[1765054047283,0.001,3041.4,3041.0,7.05955114]
[1765054048184,0.001,3041.4,3041.1,0.4828]
[1765054050659,0.001,3041.4,3041.3,0.4837]
[1765054053694,0.001,3041.4,3041.3,0.9665]
[1765054054064,0.001,3041.4,3041.3,0.4837]
[1765054054592,0.001,3041.4,3041.2,3.28817572]
[1765054055269,0.001,3041.4,3041.2,3.77097572]
[1765054056599,0.001,3041.4,3041.3,0.4837]
[1765054056978,0.001,3041.4,3041.3,0.9665]
[1765054057906,0.001,3041.4,3041.3,0.4837]
[1765054060513,0.001,3041.4,3041.3,3.7717676]
[1765054060694,0.001,3041.4,3041.3,4.34310035]
[1765054060943,0.001,3041.4,3041.3,4.82590035]
[1765054061228,0.001,3041.4,3041.3,4.34310035]
[1765054062400,0.001,3041.4,3041.3,3.7717676]
[1765054062601,0.001,3041.4,3041.3,0.4837]
[1765054062788,0.001,3041.4,3041.2,3.28816784]
[1765054063096,0.001,3041.4,3041.3,3.2880676]
[1765054064174,0.001,3041.4,3041.3,3.7717676]
[1765054064922,0.001,3041.4,3041.3,3.2880676]
[1765054066801,0.001,3041.4,3041.2,3.28814424]
[1765054069327,0.15,3041.3,3040.9,1.24359411]
[1765054069516,0.15,3041.3,3041.0,0.4828]
[1765054069829,0.15,3041.3,3041.0,0.518]
[1765054070040,0.15,3041.1,3040.4,3.2889365]
[1765054070340,1.30114539,3041.0,3040.5,3.2888494]
[1765054070513,1.30114539,3041.0,3040.4,4.26721519]
[1765054070706,0.05,3040.9,3040.4,4.26721519]
[1765054071121,0.05,3040.9,3040.5,0.4602]
[1765054072014,1.15114539,3041.0,3040.8,0.4605]
[1765054072403,1.15114539,3041.0,3040.6,0.4602]
[1765054074527,1.15114539,3041.0,3040.5,3.28882833]
[1765054074829,4.43961473,3041.0,3040.5,0.486]
[1765054075029,1.15114539,3040.8,3040.3,3.80706654]
[1765054075223,1.15114539,3040.8,3040.3,10.13505375]
[1765054075423,1.15114539,3040.8,3040.3,10.62105375]
[1765054075625,1.15114539,3040.8,3040.3,1.004]
[1765054076002,1.30114539,3040.8,3040.3,0.518]
[1765054076610,0.15,3040.7,3040.3,0.518]
[1765054077302,0.15,3040.4,3040.3,0.518]
[1765054077502,0.15,3040.7,3040.3,0.518]
[1765054077703,1.6101237,3040.6,3040.3,0.518]
[1765054078236,1.15114539,3040.6,3040.3,0.518]
[1765054078826,1.15114539,3040.8,3040.5,0.4913]
[1765054079011,4.43958221,3041.0,3040.7,0.4913]
[1765054079611,4.43958221,3041.0,3040.5,0.486]
[1765054080026,1.15114539,3040.8,3040.5,0.486]
[1765054080230,1.15114539,3040.6,3040.5,0.486]
[1765054080437,1.15114539,3040.8,3040.5,0.486]
[1765054080639,1.15114539,3040.6,3040.5,0.9773]
[1765054080835,1.15114539,3040.6,3040.3,7.33198721]
[1765054081341,1.15114539,3040.6,3040.4,0.486]
[1765054082046,1.66914539,3041.2,3040.5,6.81928721]
[1765054082216,1.15114539,3041.0,3040.7,0.4913]
[1765054082627,1.15114539,3041.0,3040.7,0.9773]
[1765054082834,0.98744464,3041.1,3040.7,0.9773]
[1765054082835,1.15114539,3041.2,3040.9,0.4913]
[1765054083014,1.15114539,3041.2,3041.0,0.4913]
[1765054083215,4.43932208,3041.2,3040.8,0.486]
[1765054084334,1.15114539,3041.2,3040.8,0.486]
[1765054084736,3.33810959,3041.3,3040.8,0.486]
[1765054085127,0.05,3041.3,3040.8,0.486]
[1765054086048,3.33807318,3041.3,3040.8,0.486]
[1765054086637,1.15114539,3041.2,3040.8,0.486]
[1765054087019,4.43933265,3041.2,3040.8,0.486]
[1765054089731,0.15,3040.9,3040.4,3.77497936]
[1765054089935,0.15,3040.9,3040.5,1.07610851]
[1765054090134,1.15114539,3040.8,3040.5,1.07610851]
[1765054090649,1.15114539,3040.8,3040.5,1.56210851]
[1765054093649,1.15114539,3040.8,3040.5,4.85103926]
[1765054094655,0.15,3040.6,3040.5,0.518]
[1765054094854,0.15,3040.6,3039.8,3.29066247]
[1765054095152,1.15114539,3040.7,3039.9,3.28953943]
[1765054095447,0.98757141,3040.5,3039.9,3.28953943]
[1765054095653,0.98757141,3040.5,3040.0,0.487]
[1765054096036,0.98757141,3040.5,3040.0,3.77645715]
[1765054096236,0.98757141,3040.5,3040.1,0.6792]
[1765054096826,0.98757141,3040.5,3040.2,0.486]
[1765054097238,1.15114539,3040.4,3040.2,0.486]
[1765054098353,1.15114539,3040.4,3040.1,0.1932]
[1765054098527,1.15114539,3040.4,3040.1,0.6792]
[1765054100348,1.15114539,3040.4,3040.0,4.04897106]
[1765054100548,1.15114539,3040.4,3040.1,0.6713]
[1765054101857,1.15114539,3040.4,3040.1,0.1952]
[1765054102057,1.15114539,3040.4,3040.2,0.4761]
[1765054102468,1.15114539,3040.4,3040.3,0.453]
[1765054105459,1.15114539,3040.4,3040.1,0.6713]
[1765054105659,1.15114539,3040.4,3040.2,0.4761]
[1765054106567,0.98757141,3040.5,3040.3,0.453]
[1765054106730,0.2,3041.3,3040.4,0.453]
[1765054106731,4.43963643,3041.0,3040.4,0.453]
[1765054107068,1.15114539,3041.0,3040.9,0.453]
[1765054107268,4.43953736,3041.0,3040.4,6.80263852]
[1765054107448,1.15114539,3040.8,3040.4,0.4761]
[1765054107760,5.42703075,3041.0,3040.4,0.4761]
[1765054107962,6.15164836,3041.0,3040.4,3.76513956]
[1765054108163,5.42703075,3041.0,3040.5,0.4761]
[1765054108378,2.13863878,3041.0,3040.5,0.4761]
[1765054108663,1.15214539,3041.4,3040.9,0.453]
[1765054108864,4.44011101,3041.4,3041.3,0.453]
[1765054109054,1.0396348,3041.4,3041.3,0.453]
[1765054109243,0.001,3041.4,3041.3,0.9291]
[1765054114043,0.600011,3041.4,3041.3,0.9291]
[1765054114835,0.750011,3041.4,3041.0,4.28244739]
[1765054115038,0.750011,3041.4,3041.1,0.4761]
[1765054115280,0.600011,3041.4,3041.1,0.4761]
[1765054116781,0.600011,3041.4,3041.0,0.518]
[1765054117074,0.600011,3041.4,3041.0,0.9941]
[1765054117866,0.600011,3041.4,3041.0,0.518]
[1765054118075,0.600011,3041.4,3041.0,0.9941]
[1765054118277,0.600011,3041.4,3041.1,0.4761]
[1765054132600,0.600011,3041.4,3041.3,0.4992]
[1765054132987,0.600011,3041.4,3041.3,0.9828]
[1765054133979,0.600011,3041.4,3041.3,0.4992]
[1765054134184,3.8879713,3041.4,3041.1,0.4836]
[1765054134901,0.600011,3041.4,3041.1,0.4836]
[1765054141815,3.88797422,3041.4,3041.0,0.518]
[1765054142413,3.88797422,3041.4,3041.0,0.9986]
[1765054142785,4.03797422,3041.4,3041.0,0.518]
[1765054143226,3.88797422,3041.4,3041.0,0.518]
[1765054143793,3.88797422,3041.4,3041.0,0.9986]
[1765054144114,1.30114539,3041.1,3040.6,0.4806]
[1765054144317,1.30114539,3041.1,3040.6,1.20619411]
[1765054144485,1.30114539,3041.1,3040.6,4.4950096]
[1765054144690,1.30114539,3041.1,3040.7,0.4806]
[1765054145218,1.15114539,3041.1,3040.7,3.76930896]
[1765054145717,1.15114539,3041.1,3040.8,0.4806]
[1765054146717,0.600011,3041.4,3041.0,0.4973]
[1765054146916,0.600011,3041.4,3041.3,0.4973]
[1765054147288,0.600011,3041.4,3041.3,0.9779]
[1765054147910,0.600011,3041.4,3041.3,0.4973]
[1765054148111,0.600011,3041.4,3041.3,0.9779]
[1765054149621,0.600011,3041.4,3041.3,0.4973]
[1765054149787,0.750011,3041.4,3040.9,0.518]
[1765054150191,0.600011,3041.4,3041.3,0.4973]
[1765054150612,0.600011,3041.4,3041.3,0.9779]
[1765054154119,0.600011,3041.4,3041.3,0.4973]
[1765054154501,0.600011,3041.4,3041.1,0.4806]
[1765054159725,3.88797537,3041.4,3040.9,0.72811255]
[1765054159909,5.03912076,3041.4,3040.9,1.20871255]
[1765054160110,5.03912076,3041.4,3041.0,0.486]
[1765054160912,5.03912076,3041.4,3040.7,1.72959411]
[1765054160913,1.15114539,3041.2,3040.7,1.72959411]
[1765054161098,1.15114539,3041.2,3040.8,0.8054544]
[1765054161303,1.15114539,3041.2,3040.8,4.58006263]
[1765054161502,1.15114539,3041.2,3040.9,0.486]
[1765054161729,1.75115639,3041.4,3040.9,0.486]
[1765054162029,1.15114539,3041.2,3040.9,0.486]
[1765054164640,4.43932311,3041.2,3040.7,1.72959411]
[1765054164809,4.43932311,3041.2,3040.7,1.004]
[1765054165218,1.15114539,3041.2,3040.8,0.486]
[1765054166535,0.15,3040.9,3040.5,0.72559411]
[1765054166852,8.49658284,3041.2,3040.6,0.486]
[1765054167442,8.34658284,3041.2,3040.6,0.486]
[1765054167626,1.15114539,3041.0,3040.5,1.21159411]
[1765054168750,1.15114539,3041.0,3040.5,0.72559411]